Cogmind - Beta 13 @@@ ROGUE MODE // 2024.04.28 @ 16:11:26 Player: Lunace Result: Destroyed by P-80 Master with Gamma Rifle Performance ------------- Evolutions (5) 2500 Regions Visited (15) 3000 Robots Destroyed (216) 1080 Value Destroyed (6798) 6798 Prototype IDs (36) 720 Alien Tech Used (1) 200 Bonus (3942) 3942 TOTAL SCORE: 18240 Bonus ------- High Alert Combat Kills 798 Follower Combat Kills 500 Met Warlord at Base 500 MAIN.C Attacked Warlord 500 Warlord Defense Kills 2124 Friendly Fire -480 Cogmind --------- Core Integrity 0/1000 Matter 300/300 Energy 100/100 System Corruption 8% Temperature Cool (0) Movement Core (50) Location -5/Warlord Parts ------- > --- POWER (1) -------- (None) > --- PROPULSION (4) --- (None) > --- UTILITY (8) ------ Advanced Signal Interpreter Core Analyzer > --- WEAPON (4) ------- (None) > --- INVENTORY (5) ---- Antimatter Reactor Compact Wheel 0b10 Decoder Chip [Generic] Advanced Plasma Cannon Improved Plasma Cutter Peak State ------------ > --- POWER ------------ Neutrino Core > --- PROPULSION ------- Carbon-fiber Leg Flexi-carbon Leg Flexi-carbon Leg Biometal Leg > --- UTILITY ---------- Medium Storage Unit Advanced Signal Interpreter Improved Terrain Scan Processor 0b10 Decoder Chip [Generic] Advanced Targeting Computer Advanced Targeting Computer Core Analyzer Experimental Shock Absorption System > --- WEAPON ----------- Vortex Rifle Chain Missile Launcher Segregator > --- INVENTORY -------- Reinforced Fission Core Antimatter Reactor Improved Medium Armor Plating Improved Medium Armor Plating Improved Medium Armor Plating Long-range Tractor Beam Vortex Shotgun Advanced Plasma Cannon Advanced Plasma Cannon Improved Plasma Cutter [Rating: 97] Favorites ----------- Power Cooled Ion Engine Engine Cooled Ion Engine Power Core Enhanced Fission Core Propulsion Light Treads Treads Light Treads Leg Carbon-fiber Leg Wheel Wheel Hover Unit Improved Hover Unit Flight Unit Cooled Cesium-ion Thruster Utility Advanced Targeting Computer Device Long-range Tractor Beam Storage Large Storage Unit Processor Advanced Targeting Computer Hackware Experimental Hacking Suite Protection Hardened Heavy Armor Plating Weapon Heavy Rocket Launcher Energy Gun Plasma Rifle Energy Cannon Cooled Particle Cannon Ballistic Gun Assault Rifle Ballistic Cannon Gauss Cannon Launcher Heavy Rocket Launcher Special Weapon Improved Plasma Cutter Impact Weapon Shock Maul Slashing Weapon Axe Special Melee Weapon Improved Datajack Build | -11 -10 -9 -9 -9 -8 -8 -8 -7 -6 -6 -6 -5 -5 -5 -5 ------- Run | Yrd Mat Mat Min Exi Min Mat Sto Fac Fac Was Fac Fac Upp Upp War Slots Evolved 10 | . . 2 . . . 2 . 2 2 . . 2 . . . Power . | . . . . . . . . . . . . . . . . Propulsion 2 | . . 1 . . . 1 . . . . . . . . . Utility 6 | . . . . . . 1 . 1 2 . . 2 . . . Weapon 2 | . . 1 . . . . . 1 . . . . . . . Parts Attached 220 | 6 9 19 5 1 . 6 17 73 5 9 20 14 4 7 25 Power 18 | 1 . 3 . . . . . 7 1 1 1 2 . . 2 Engine 7 | 1 . 3 . . . . . 2 . . . 1 . . . Core 11 | . . . . . . . . 5 1 1 1 1 . . 2 Reactor . | . . . . . . . . . . . . . . . . Propulsion 52 | 2 1 5 . . . 2 7 17 1 1 4 6 . . 6 Treads 23 | 2 1 4 . . . 2 7 5 . . 1 . . . 1 Leg 13 | . . . . . . . . 4 . . . 4 . . 5 Wheel 7 | . . . . . . . . 7 . . . . . . . Hover 7 | . . . . . . . . 1 1 1 2 2 . . . Flight 2 | . . 1 . . . . . . . . 1 . . . . Utility 58 | 1 3 1 . 1 . 2 . 21 2 1 10 3 3 3 7 Device 25 | . . . . . . . . 9 2 1 4 1 3 1 4 Storage 7 | 1 1 . . 1 . 1 . 1 . . . 2 . . . Processor 12 | . 1 . . . . . . 3 . . 6 . . 2 . Hackware 1 | . . . . . . . . 1 . . . . . . . Protection 13 | . 1 1 . . . 1 . 7 . . . . . . 3 Artifact . | . . . . . . . . . . . . . . . . Weapon 92 | 2 5 10 5 . . 2 10 28 1 6 5 3 1 4 10 Energy Gun 10 | 1 . . . . . . 1 1 . . 1 1 . . 5 Energy Cannon 12 | . . 1 . . . . . 5 . 2 . . . 2 2 Ballistic Gun 29 | 1 2 5 3 . . 1 5 10 . . 2 . . . . Ballistic Cannon 5 | . 1 . . . . . . 2 . 2 . . . . . Launcher 25 | . 2 4 2 . . 1 3 6 . . 1 2 1 1 2 Special Weapon 1 | . . . . . . . . . . . . . . 1 . Impact Weapon 6 | . . . . . . . . 4 . 2 . . . . . Slashing Weapon 2 | . . . . . . . 1 . . . . . . . 1 Piercing Weapon . | . . . . . . . . . . . . . . . . Special Melee Weapon 2 | . . . . . . . . . 1 . 1 . . . . Unidentified Prototypes 28 | . . 4 . . . 1 2 13 . 1 2 . . 1 4 Corrupted Parts 2 | . . . . . . . . . . 2 . . . . . System Corruption 15 | . . . . . . . . . . 15 . . . . . Parts Lost 58 | . . 1 . . . 1 . 25 . 9 . . 1 2 19 Power 2 | . . . . . . . . 1 . . . . . . 1 Propulsion 20 | . . . . . . . . 12 . 1 . . . 2 5 Utility 9 | . . . . . . . . 2 . 3 . . . . 4 Weapon 27 | . . 1 . . . 1 . 10 . 5 . . 1 . 9 Highest Loss Streak 14 | . . 1 . . . 1 . 12 . 7 . . 1 1 14 To Critical Strikes . | . . . . . . . . . . . . . . . . Average Slot Usage (%) 87 | . 92 93 100 100 100 90 88 84 89 38 65 93 97 89 83 Engine 5 | . 14 11 11 11 11 9 9 2 . . . . 5 5 1 Core 1 | . . . . . . . . 3 6 1 . 4 . . 3 Treads 15 | . 27 26 33 33 33 36 36 14 . . 4 . . . . Leg 5 | . . . . . . . . 5 6 2 . 20 23 12 10 Wheel 1 | . . . . . . . . 4 6 2 . . . . . Hover 1 | . . . . . . . . 1 5 3 6 1 . . . Device 4 | . . . . . . . . 5 23 10 8 6 10 8 4 Storage 7 | . 14 11 11 11 11 9 9 7 6 2 . 4 5 5 4 Processor 12 | . 2 . . . . . . 4 6 4 25 29 29 31 33 Protection 4 | . 4 11 11 11 11 9 9 4 . . . . . . . Energy Gun 2 | . 1 . . . . . . . . . 5 6 11 5 6 Energy Cannon 2 | . . . . . . . . 4 13 6 . . . 2 4 Ballistic Gun 11 | . 16 26 22 22 22 20 21 9 . . 4 5 5 1 . Launcher 5 | . 8 6 10 11 11 6 3 2 . . . 8 2 9 8 Impact Weapon 1 | . . . . . . . . 4 6 . . . . . . Naked Turns 79 | . . . . . . . . . . 70 9 . . . . Heaviest Build 88 | 13 33 38 43 43 43 82 82 88 55 64 23 49 50 56 73 Greatest Support 83 | 40 40 60 60 60 60 80 80 82 10 10 28 65 65 65 83 Greatest Overweight (x) 19 | . 1 . . . . 1 1 19 5 6 1 1 . 1 7 Average Overweight (x) . | . . . . . . . . 1 4 1 . . . . . Largest Inventory Capacity 20 | 8 15 15 15 15 15 20 20 20 15 15 5 10 10 10 10 Average Capacity 13 | 7 14 15 15 15 15 19 20 18 15 8 5 9 10 10 9 Most Carried 20 | 2 11 15 15 15 15 15 20 20 8 9 5 10 10 10 10 Average Carried 10 | 1 6 12 14 14 15 13 17 9 6 5 3 4 9 9 9 Final Capacity 20 | 8 15 15 15 15 15 20 20 15 15 5 5 10 10 10 5 Final Carried 19 | 2 11 15 15 15 15 14 19 6 8 5 3 10 9 10 5 Class Distribution -------------------- 26% | Scavenger-Tank 19% | Mutant 15% | Scavenger-Gunner 14% | Gunner 5% | Scavenger-Mutant 5% | Tank 5% | Scavenger-Bomber 3% | Commander-Tank Dominant Class ---------------- Mutant | -10/Materials Tank | -9/Materials Scavenger-Tank | -9/Mines Scavenger-Tank | -9/Exiles Scavenger-Tank | -8/Mines Scavenger-Tank | -8/Materials Scavenger-Tank | -8/Storage Scavenger-Tank | -7/Factory Scavenger-Mutant | -6/Factory Mutant | -6/Waste Mutant | -6/Factory Scavenger-Gunner | -5/Factory Scavenger-Gunner | -5/Upper Caves Gunner | -5/Upper Caves Scavenger-Bomber | -5/Warlord Resources | -11 -10 -9 -9 -9 -8 -8 -8 -7 -6 -6 -6 -5 -5 -5 -5 ----------- Run | Yrd Mat Mat Min Exi Min Mat Sto Fac Fac Was Fac Fac Upp Upp War Matter Collected 6152 | 151 404 813 266 . 36 297 613 1659 21 213 123 573 313 143 527 Remotely 1594 | . . . . . . . . 725 1 6 . . 270 143 449 Salvage Created 7079 | . 158 1235 255 . 58 525 585 2446 21 199 41 736 117 122 581 Parts 374 | . 15 81 22 . 3 46 46 107 4 2 5 24 3 6 10 Haulers Intercepted 16 | . 1 4 . . . . 5 6 . . . . . . . Recyclers Shooed 22 | . 1 8 3 . . . . 8 . . 1 1 . . . Parts Field Recycled . | . . . . . . . . . . . . . . . . Retrieved Matter . | . . . . . . . . . . . . . . . . Parts Self-Destructed 2 | . . . . . . . . . . . . . 1 1 . Prevented . | . . . . . . . . . . . . . . . . Kills | -11 -10 -9 -9 -9 -8 -8 -8 -7 -6 -6 -6 -5 -5 -5 -5 ------- Run | Yrd Mat Mat Min Exi Min Mat Sto Fac Fac Was Fac Fac Upp Upp War Combat Hostiles Destroyed 142 | . 3 17 11 . 3 10 11 41 . 1 1 11 7 8 18 Melee 5 | . . . . . . . . 5 . . . . . . . Guns 41 | . . 8 3 . 1 2 6 11 . . 1 4 2 . 3 Cannons 4 | . . . . . . . . 3 . 1 . . . . . AOE 88 | . 3 9 8 . 2 7 5 19 . . . 7 5 8 15 Classes Destroyed 19 | . 6 3 2 . 1 . . 5 . 1 . . . . 1 Worker 10 | . 1 2 1 . . 2 1 3 . . . . . . . Builder 14 | . 1 3 . . . 2 . 8 . . . . . . . Tunneler 2 | . . . 1 . . . . 1 . . . . . . . Hauler 16 | . 1 4 . . . . 5 6 . . . . . . . Recycler 18 | . 1 5 . . . 1 . 9 . . . 2 . . . Mechanic 1 | . . . . . . . . 1 . . . . . . . Operator 3 | . . 2 . . . . . . 1 . . . . . . Watcher 9 | . 1 4 . . . . 1 2 . . . 1 . . . Swarmer 35 | . 3 6 4 . . 3 3 4 . . . . 5 4 3 Grunt 61 | . . 6 6 . 2 3 4 17 . . . 11 . 4 8 Brawler 4 | . . . . . 1 . . 1 . . . . . . 2 Duelist 5 | . . . 1 . . . . 3 . . . . . . 1 Protector 4 | . . . . . . . . 3 . . . . . . 1 Sentry 14 | . . 5 . . . 4 4 1 . . . . . . . Specialist 3 | . . . . . . . . 2 . . . . . . 1 Hunter 7 | . . . . . . . . 5 . . . . 2 . . Programmer 6 | . . . . . . . . 5 . . 1 . . . . Compactor 1 | . . . . . . . . . . 1 . . . . . Enhanced Grunt 1 | . . . . . . . . . . . . . . . 1 Executioner 2 | . . . . . . . . . . . . . . . 2 Best Kill Streak 21 | . 3 7 7 . 3 6 3 21 2 1 1 6 5 4 13 Combat Bots Only 16 | . 2 3 5 . 3 4 3 16 . 1 1 5 5 4 13 Max Kills in Single Turn 5 | . 2 3 2 . 1 2 2 3 1 1 1 4 4 3 5 Gunslinging 1 | . . . . . . . . 1 . . . . . . . Exploded 5 | . 2 1 2 . 1 2 2 2 . . . 3 4 3 5 Melee 1 | . . . . . . . . 1 . . . . . . . Uniques/NPCs Destroyed . | . . . . . . . . . . . . . . . . Combat | -11 -10 -9 -9 -9 -8 -8 -8 -7 -6 -6 -6 -5 -5 -5 -5 -------- Run | Yrd Mat Mat Min Exi Min Mat Sto Fac Fac Was Fac Fac Upp Upp War Hostile Shots Fired 830 | . 19 73 16 . 3 31 50 368 6 13 9 22 28 15 177 Missed 268 | . 3 33 4 . 1 7 14 117 2 . 3 8 9 6 61 Damage Taken 10670 | . 172 498 137 . 49 332 489 4583 24 560 124 278 298 154 2972 Core 2355 | . 26 67 22 . . 30 48 695 6 422 21 26 12 32 948 Absorbed by Shields 16 | . . . . . . . . . . . . 16 . . . Ignored by Resistances 35 | . . . . . . . . . . . . . . . 35 Regen/Repaired (Parts) 262 | . . . . . . . 100 . . . . . . . 162 Core Remaining (%) 66 | 100 89 . . . 77 . 85 . . . 47 . . . . Volleys Fired 396 | 2 38 80 17 . 8 16 42 94 1 22 6 27 14 9 20 Largest 4 | 2 2 3 3 . 2 3 3 3 2 4 2 2 4 2 2 Hottest 333 | 60 60 70 60 . 56 92 79 161 180 333 105 78 209 78 196 Shots Fired 714 | 4 48 192 30 . 11 26 101 165 2 30 9 29 30 11 26 Gun 533 | 4 39 180 20 . 6 13 94 116 . . 8 22 20 . 11 Cannon 57 | . 5 . . . . . . 13 2 30 . . . . 7 Launcher 124 | . 4 12 10 . 5 13 7 36 . . 1 7 10 11 8 Special . | . . . . . . . . . . . . . . . . Kinetic 500 | 2 42 180 20 . 6 13 94 117 . 16 4 . 6 . . Thermal 67 | . . . . . . . . 12 2 14 4 22 6 . 7 Explosive 116 | . 4 12 10 . 5 5 7 36 . . 1 7 10 11 8 Electromagnetic 20 | 2 2 . . . . 8 . . . . . . 8 . . Entropic 11 | . . . . . . . . . . . . . . . 11 Robot Hit Streak 21 | 2 5 10 7 . 7 4 8 21 1 9 7 11 3 6 9 Robot Miss Streak 5 | 1 3 5 2 . 1 4 3 3 1 2 1 1 5 4 3 Penetration Max . | . . . . . . . . . . . . . . . . Secondary Targets 6 | . . . . . . . . 6 . . . . . . . Max Gunslinging Chain 1 | . . . . . . . . 1 . . . . . . . Shots Hit Robots 490 | 3 24 106 18 . 9 17 54 165 1 25 7 24 12 6 19 Core Hits 433 | 1 13 57 24 . 5 25 43 146 1 2 3 34 10 12 57 Critical Kills 3 | . . . . . . . . 3 . . . . . . . Critical Parts Destroyed 12 | . . . . . . . . 12 . . . . . . . Critical Strikes 21 | . . . . . . . . 17 . 2 1 1 . . . Burn 2 | . . . . . . . . . . . 1 1 . . . Meltdown 1 | . . . . . . . . 1 . . . . . . . Destroy 1 | . . . . . . . . 1 . . . . . . . Blast 1 | . . . . . . . . 1 . . . . . . . Smash 16 | . . . . . . . . 14 . 2 . . . . . Melee Attacks 72 | . . . . . . . 2 65 . 2 . . . . 3 Thermal 3 | . . . . . . . . . . . . . . . 3 Impact 51 | . . . . . . . . 49 . 2 . . . . . Slashing 18 | . . . . . . . 2 16 . . . . . . . Piercing . | . . . . . . . . . . . . . . . . Sneak Attacks 15 | . . . . . . . . 15 . . . . . . . Combat Hostiles . | . . . . . . . . . . . . . . . . Follow-up Attacks 4 | . . . . . . . . 4 . . . . . . . Damage Inflicted 24137 | 28 525 2423 863 . 430 1041 1487 9156 56 1100 161 1437 820 1034 3576 Guns 6427 | 28 208 1520 181 . 112 172 899 1987 . . 161 422 143 . 594 Cannons 1646 | . 52 . . . . . . 373 56 968 . . . . 197 Explosions 13134 | . 265 903 682 . 318 869 588 3998 . . . 1015 677 1034 2785 Melee 2928 | . . . . . . . . 2796 . 132 . . . . . Ramming 2 | . . . . . . . . 2 . . . . . . . Kinetic 5714 | 13 247 1520 181 . 112 172 899 2014 . 453 90 . 13 . . Thermal 2061 | . . . . . . 184 . 548 56 515 71 422 68 . 197 Explosive 12356 | . 265 903 682 . 318 293 588 3796 . . . 1015 677 1034 2785 Electromagnetic 482 | 15 13 . . . . 392 . . . . . . 62 . . Impact 2180 | . . . . . . . . 2048 . 132 . . . . . Slashing 748 | . . . . . . . . 748 . . . . . . . Piercing . | . . . . . . . . . . . . . . . . Entropic 594 | . . . . . . . . . . . . . . . 594 Highest Corruption 37 | . . . . . . . . 10 . 35 37 . . . 7 Average Corruption 13 | . . . . . . . . 6 . 24 35 . . . 4 Corruption Purged 1 | . . . . . . . . . . 1 . . . . . Corruption Blocked . | . . . . . . . . . . . . . . . . Effects 100 | . . . . . . . . 55 . 12 31 . . . 2 Message Errors 23 | . . . . . . . . 11 . 2 10 . . . . Matter Fused 25 | . . . . . . . . 13 . 5 7 . . . . Heat Flow Errors 14 | . . . . . . . . 9 . 1 4 . . . . Energy Discharges 7 | . . . . . . . . 4 . 1 1 . . . 1 Parts Rejected 2 | . . . . . . . . 2 . . . . . . . Data Loss (minor) 11 | . . . . . . . . 8 . . 3 . . . . Data Loss (major) 5 | . . . . . . . . 1 . 2 2 . . . . Misfires 5 | . . . . . . . . 4 . . . . . . 1 Alerts 4 | . . . . . . . . 1 . . 3 . . . . Misdirections 1 | . . . . . . . . 1 . . . . . . . Weapon Failures 3 | . . . . . . . . 1 . 1 1 . . . . Overload Shots 10 | . . . . . . . . . 2 8 . . . . . Effects 1 | . . . . . . . . . . 1 . . . . . Energy Bleed 1 | . . . . . . . . . . 1 . . . . . Overflow Damage 1636 | . . 64 . . . . 73 1344 . . . . 50 19 86 Projectiles 19 | . . . . . . . . 19 . . . . . . . Explosions 388 | . . 64 . . . . 73 96 . . . . 50 19 86 Melee 1229 | . . . . . . . . 1229 . . . . . . . Knockbacks 11 | . . . . . . . . 11 . . . . . . . Impact 10 | . . . . . . . . 10 . . . . . . . Kinetic 1 | . . . . . . . . 1 . . . . . . . Secondary . | . . . . . . . . . . . . . . . . Self-Inflicted Damage 280 | . 45 . . . . 19 . 167 . . 13 25 . . 11 Shots 10 | . 1 . . . . 2 . 4 . . 1 1 . . 1 Rammed 1 | . . . . . . . . 1 . . . . . . . Targets Rammed 1 | . . . . . . . . 1 . . . . . . . Kicked . | . . . . . . . . . . . . . . . . Crushed . | . . . . . . . . . . . . . . . . Highest Temperature 432 | 40 20 45 12 . 3 126 105 385 93 234 258 213 413 5 432 Average Temperature 116 | 20 11 17 6 . 3 66 35 168 48 115 102 81 204 3 158 Received Heat Transfer 1864 | . . 153 60 . 9 81 189 897 . . 9 118 . 54 294 Effects 5 | . . . . . . . . 4 . . . . 1 . . Shutdowns 3 | . . . . . . . . 3 . . . . . . . Interference 1 | . . . . . . . . 1 . . . . . . . Damage (minor) 1 | . . . . . . . . . . . . . 1 . . Siege Activations . | . . . . . . . . . . . . . . . . Robots Corrupted 1 | . . . . . . 1 . . . . . . . . . Combat Hostiles 1 | . . . . . . 1 . . . . . . . . . Parts Fried 10 | . . . . . . 2 . 8 . . . . . . . Impact Corruptions 30 | . . . . . . . . 29 . 1 . . . . . Robots Melted 1 | . . . . . . . . 1 . . . . . . . Combat Hostiles . | . . . . . . . . . . . . . . . . Parts Melted 6 | . . . . . . . . 4 1 . . 1 . . . Heat Transferred 2981 | . . . . . . 250 . 483 50 498 250 1050 150 . 250 Parts Sabotaged 7 | . . . . . . . . . . . . . . . 7 Parts Stolen . | . . . . . . . . . . . . . . . . Parts Stripped . | . . . . . . . . . . . . . . . . Power Chain Reactions 2 | . . . . . . 2 . . . . . . . . . Alert | -11 -10 -9 -9 -9 -8 -8 -8 -7 -6 -6 -6 -5 -5 -5 -5 ------- Run | Yrd Mat Mat Min Exi Min Mat Sto Fac Fac Was Fac Fac Upp Upp War Peak Influence 988 | . 198 538 522 . 91 408 921 988 495 174 138 375 . . . Initial 459 | . . 4 156 . . 35 172 350 459 173 72 32 . . . Average 376 | . 70 256 388 . 62 234 439 648 486 128 70 238 . . . Maximum Alert Level 3 | . . 2 2 . . 2 3 3 2 . . 1 . . . Low Security (%) 34 | 100 100 37 11 . 100 41 10 . . 100 100 57 . . . Level 1 30 | . . 39 37 . . 27 45 38 . . . 42 . . . Level 2 14 | . . 22 51 . . 30 25 6 100 . . . . . . Level 3 19 | . . . . . . . 18 55 . . . . . . . Level 4 . | . . . . . . . . . . . . . . . . Level 5 . | . . . . . . . . . . . . . . . . High Security . | . . . . . . . . . . . . . . . . Max Security . | . . . . . . . . . . . . . . . . Squads Dispatched 18 | . . 1 . . . 1 5 9 . . 1 1 . . . Investigation 1 | . . . . . . . 1 . . . . . . . . Extermination 4 | . . . . . . . . 3 . . 1 . . . . Reinforcement 10 | . . 1 . . . 1 2 5 . . . 1 . . . Assault 1 | . . . . . . . . 1 . . . . . . . Garrison 2 | . . . . . . . 2 . . . . . . . . Intercept . | . . . . . . . . . . . . . . . . Searches Triggered . | . . . . . . . . . . . . . . . . Construction Impeded 4 | . . 1 . . . . . 3 . . . . . . . Haulers Reinforced 1 | . . . . . . . . 1 . . . . . . . Active Scanning Responses . | . . . . . . . . . . . . . . . . Cargo Convoy Interrupts 1 | . . . . . . . . 1 . . . . . . . Stealth | -11 -10 -9 -9 -9 -8 -8 -8 -7 -6 -6 -6 -5 -5 -5 -5 --------- Run | Yrd Mat Mat Min Exi Min Mat Sto Fac Fac Was Fac Fac Upp Upp War Distress Signals 10 | . 1 4 . . . . 3 1 . . . . . . 1 Communications Jammed . | . . . . . . . . . . . . . . . . Distress Signals . | . . . . . . . . . . . . . . . . Times Spotted 249 | . 13 27 15 . 3 12 20 61 2 6 5 12 7 8 58 Peak Tracking Total 18 | . 5 4 3 . 3 5 5 11 1 5 4 5 5 4 18 Tactical Retreats 12 | . . 1 1 . . 1 . 2 . . 2 . . . 5 Traps | -11 -10 -9 -9 -9 -8 -8 -8 -7 -6 -6 -6 -5 -5 -5 -5 ------- Run | Yrd Mat Mat Min Exi Min Mat Sto Fac Fac Was Fac Fac Upp Upp War Traps Triggered 5 | . 1 . . . . . . 3 1 . . . . . . Indirectly . | . . . . . . . . . . . . . . . . Trap Hack Attempts . | . . . . . . . . . . . . . . . . Triggered . | . . . . . . . . . . . . . . . . Disarmed . | . . . . . . . . . . . . . . . . Reprogrammed . | . . . . . . . . . . . . . . . . Reused . | . . . . . . . . . . . . . . . . Traps Extracted . | . . . . . . . . . . . . . . . . Installed . | . . . . . . . . . . . . . . . . Triggered 25 | . . . . . . . . . . . . . 2 . 23 Machines | -11 -10 -9 -9 -9 -8 -8 -8 -7 -6 -6 -6 -5 -5 -5 -5 ---------- Run | Yrd Mat Mat Min Exi Min Mat Sto Fac Fac Was Fac Fac Upp Upp War Machines Disabled 24 | . . 1 2 . . . 6 9 . . 1 5 . . . Max in Single Turn 3 | . . 1 1 . . . 1 2 . . 1 3 . . . Garrison Access 1 | . . . . . . . . 1 . . . . . . . Machines Repaired . | . . . . . . . . . . . . . . . . Machines Dismantled 1 | . . . . . . . . . . . . . . 1 . Machines Sabotaged . | . . . . . . . . . . . . . . . . Overloaded Fab Kills . | . . . . . . . . . . . . . . . . Hacking | -11 -10 -9 -9 -9 -8 -8 -8 -7 -6 -6 -6 -5 -5 -5 -5 --------- Run | Yrd Mat Mat Min Exi Min Mat Sto Fac Fac Was Fac Fac Upp Upp War Machines Accessed 38 | . 1 3 1 1 . . 7 9 . . 6 4 1 2 3 Terminals 18 | . 1 3 . . . . 5 4 . . 4 1 . . . Fabricators 3 | . . . . . . . . 1 . . 1 1 . . . Repair Stations 4 | . . . . . . . 1 1 . . . 2 . . . Recycling Units 4 | . . . . . . . 1 2 . . 1 . . . . Scanalyzers . | . . . . . . . . . . . . . . . . Garrison Access 1 | . . . . . . . . 1 . . . . . . . Total Hacks 84 | . 8 7 1 1 . . 15 20 . . 12 10 1 2 7 Successful 48 | . 3 4 1 1 . . 10 10 . . 5 4 1 2 7 Failed 36 | . 5 3 . . . . 5 10 . . 7 6 . . . Catastrophic 8 | . . . . . . . 3 3 . . . 2 . . . Database Lockouts . | . . . . . . . . . . . . . . . . Manual 52 | . 8 6 . . . . 12 13 . . 7 5 . . 1 Terminals 47 | . 8 7 . . . . 10 10 . . 8 4 . . . Fabricators 7 | . . . . . . . . 2 . . 2 3 . . . Repair Stations 6 | . . . . . . . 2 1 . . . 3 . . . Recycling Units 10 | . . . . . . . 3 5 . . 2 . . . . Scanalyzers . | . . . . . . . . . . . . . . . . Garrison Access 2 | . . . . . . . . 2 . . . . . . . Terminal Hacks 22 | . 2 1 1 1 . . 3 1 . . 1 2 1 2 7 Record 4 | . . . . 1 . . . . . . . . 1 1 1 Robot Analysis 2 | . 2 . . . . . . . . . . . . . . Prototype ID Bank 6 | . . . . . . . . . . . . 1 . . 5 Open Door 5 | . . . 1 . . . 1 . . . 1 . . 1 1 Level Access Points 1 | . . . . . . . . 1 . . . . . . . Branch Access Points 1 | . . 1 . . . . . . . . . . . . . Alert Level 1 | . . . . . . . 1 . . . . . . . . Locate Traps 1 | . . . . . . . . . . . . 1 . . . Zone Layout 1 | . . . . . . . 1 . . . . . . . . Fabricator Hacks 3 | . . . . . . . . 1 . . 1 1 . . . Network Status 3 | . . . . . . . . 1 . . 1 1 . . . Repair Station Hacks 3 | . . . . . . . 2 . . . . 1 . . . Scan Component 2 | . . . . . . . 1 . . . . 1 . . . Repair 1 | . . . . . . . 1 . . . . . . . . Recycling Unit Hacks 2 | . . . . . . . . 2 . . . . . . . Report Inventory 1 | . . . . . . . . 1 . . . . . . . Retrieve Components 1 | . . . . . . . . 1 . . . . . . . Scanalyzer . | . . . . . . . . . . . . . . . . Garrison Access Hacks 1 | . . . . . . . . 1 . . . . . . . Seal Access 1 | . . . . . . . . 1 . . . . . . . Unauthorized Hacks 17 | . 1 3 . . . . 5 5 . . 3 . . . . Terminals 12 | . 1 3 . . . . 3 3 . . 2 . . . . Botnet 12 | . 1 3 . . . . 3 3 . . 2 . . . . Fabricators 1 | . . . . . . . . . . . 1 . . . . Haulers 1 | . . . . . . . . . . . 1 . . . . Repair Stations . | . . . . . . . . . . . . . . . . Recycling Units 4 | . . . . . . . 2 2 . . . . . . . Monitor 2 | . . . . . . . 1 1 . . . . . . . Recyclers 2 | . . . . . . . 1 1 . . . . . . . Scanalyzers . | . . . . . . . . . . . . . . . . Garrison Access . | . . . . . . . . . . . . . . . . Data Cores Recovered 2 | . . 1 . . . . . . 1 . . . . . . Used 1 | . . 1 . . . . . . . . . . . . . Hacking Detections 25 | . 1 3 . . . . 5 7 . . 6 3 . . . Full Trace Events . | . . . . . . . . . . . . . . . . Feedback Events . | . . . . . . . . . . . . . . . . Feedback Blocked . | . . . . . . . . . . . . . . . . Robot Schematics Acquired . | . . . . . . . . . . . . . . . . Robots Built . | . . . . . . . . . . . . . . . . Authchips . | . . . . . . . . . . . . . . . . Time . | . . . . . . . . . . . . . . . . Total Robot Build Rating . | . . . . . . . . . . . . . . . . Part Schematics Acquired . | . . . . . . . . . . . . . . . . Parts Built . | . . . . . . . . . . . . . . . . Authchips . | . . . . . . . . . . . . . . . . Time . | . . . . . . . . . . . . . . . . Total Part Build Rating . | . . . . . . . . . . . . . . . . Parts Repaired 1 | . . . . . . . 1 . . . . . . . . Time 44 | . . . . . . . 44 . . . . . . . . Parts Recycled . | . . . . . . . . . . . . . . . . Recycled Matter . | . . . . . . . . . . . . . . . . Retrieved Matter . | . . . . . . . . . . . . . . . . Retrieved Components 4 | . . . . . . . . 4 . . . . . . . Parts Scanalyzed . | . . . . . . . . . . . . . . . . Part Schematics Acquired . | . . . . . . . . . . . . . . . . Parts Damaged . | . . . . . . . . . . . . . . . . Bothacking | -11 -10 -9 -9 -9 -8 -8 -8 -7 -6 -6 -6 -5 -5 -5 -5 ------------ Run | Yrd Mat Mat Min Exi Min Mat Sto Fac Fac Was Fac Fac Upp Upp War Used RIF Installer . | . . . . . . . . . . . . . . . . Robots Hacked . | . . . . . . . . . . . . . . . . Non-combat . | . . . . . . . . . . . . . . . . Combat . | . . . . . . . . . . . . . . . . Robot Hacks Applied . | . . . . . . . . . . . . . . . . Relay Couplers Released . | . . . . . . . . . . . . . . . . Fabnet Peak Effective % . | . . . . . . . . . . . . . . . . Robots Rewired . | . . . . . . . . . . . . . . . . Allies Hacked . | . . . . . . . . . . . . . . . . Hacks Repelled . | . . . . . . . . . . . . . . . . Allies | -11 -10 -9 -9 -9 -8 -8 -8 -7 -6 -6 -6 -5 -5 -5 -5 -------- Run | Yrd Mat Mat Min Exi Min Mat Sto Fac Fac Was Fac Fac Upp Upp War Total Allies 11 | . . . 1 . . . 10 . . . . . . . . Largest Group 10 | . . . 1 . . . 10 5 . . . . . . . Highest-Rated Group 173 | . . . 31 . . . 173 93 . . . . . . . Highest-Rated Ally 31 | . . . 31 . . . 29 29 . . . . . . . Total Orders 2 | . . . . . . . . 2 . . . . . . . EXPLORE 2 | . . . . . . . . 2 . . . . . . . Ally Attacks 86 | . . . 12 . . . 67 7 . . . . . . . Total Damage 1456 | . . . 124 . . . 914 418 . . . . . . . Kills 20 | . . . 3 . . . 13 4 . . . . . . . Allies Corrupted . | . . . . . . . . . . . . . . . . Allies Melted 5 | . . . . . . . . . . . . . . . 5 Intel | -11 -10 -9 -9 -9 -8 -8 -8 -7 -6 -6 -6 -5 -5 -5 -5 ------- Run | Yrd Mat Mat Min Exi Min Mat Sto Fac Fac Was Fac Fac Upp Upp War Robot Analysis Total 2 | . 2 . . . . . . . . . . . . . . Derelict Logs Recovered 4 | . . . 1 . . . . . . . . . 1 2 . Drone Launches 2 | . . . . . . . . 2 . . . . . . . Drone Recoveries 2 | . . . . . . . . 2 . . . . . . . Exploration | -11 -10 -9 -9 -9 -8 -8 -8 -7 -6 -6 -6 -5 -5 -5 -5 ------------- Run | Yrd Mat Mat Min Exi Min Mat Sto Fac Fac Was Fac Fac Upp Upp War Turns Passed 10228 | 90 542 859 607 304 147 312 879 2427 136 233 625 695 436 478 1458 Spaces Moved 5671 | 48 269 351 302 189 80 141 398 1096 83 197 702 521 307 246 741 Core 236 | 2 . . . . . . . 2 . 160 16 . . . 56 Treads 2325 | 46 269 351 302 189 80 141 398 547 . . 2 . . . . Legs 1864 | . . . . . . . . 162 . . . 464 307 246 685 Wheels 505 | . . . . . . . . 385 83 37 . . . . . Hover 497 | . . . . . . . . . . . 440 57 . . . Flight 244 | . . . . . . . . . . . 244 . . . . Fastest Speed 35 | 50 160 160 160 160 160 160 160 115 140 50 35 48 120 120 50 Average Speed 144 | 155 160 160 160 160 160 177 164 170 149 75 65 114 120 169 182 Slowest Speed 1000 | 160 240 160 160 160 160 240 240 1000 155 200 160 131 120 190 400 Overloaded Moves . | . . . . . . . . . . . . . . . . Propulsion Burnouts . | . . . . . . . . . . . . . . . . Robots Hopped . | . . . . . . . . . . . . . . . . Cave-ins Triggered . | . . . . . . . . . . . . . . . . Exploration Rate (%) 39 | 3 44 38 69 59 18 17 60 28 3 92 11 17 52 42 83 Regions Visited 15 Branch Regions 7 Pre-discovered Areas 1 | . . . . 1 . . . . . . . . . . . Known Exits Taken 6 | . . 1 . . . . . 1 . . 1 1 1 1 . Unknown Exits Taken 7 | 1 1 . 1 1 1 1 1 . . . . . . . . Scrap Searched 3 | . . . 1 . . . . . . . . . 1 1 . Spaces Dug 38 | . 7 . 12 . . . . 4 . . 15 . . . . Terrain Destroyed 855 | . 28 70 65 . 36 41 49 178 . 6 15 74 103 111 79 Melee 4 | . . . . . . . . 4 . . . . . . . Projectile 21 | . . . . . . . 1 5 . 6 . . 4 . 5 AOE 830 | . 28 70 65 . 36 41 48 169 . . 15 74 99 111 74 Terrain Rammed . | . . . . . . . . . . . . . . . . Walls Destroyed . | . . . . . . . . . . . . . . . . Machines Disabled . | . . . . . . . . . . . . . . . . Actions | -11 -10 -9 -9 -9 -8 -8 -8 -7 -6 -6 -6 -5 -5 -5 -5 --------- Run | Yrd Mat Mat Min Exi Min Mat Sto Fac Fac Was Fac Fac Upp Upp War Total 6951 | 57 339 490 401 192 88 183 536 1425 92 248 853 589 351 291 816 Wait 351 | . 6 15 70 . 1 9 51 35 . 15 110 9 24 6 . Move 5658 | 47 268 350 301 188 79 140 397 1096 83 196 701 520 306 245 741 Hop . | . . . . . . . . . . . . . . . . Pick Up 89 | 2 11 10 2 1 . 4 10 18 1 2 6 7 1 5 9 Fast Attach 119 | 6 7 5 2 . . 2 3 36 5 5 15 11 2 6 14 Attach 61 | . 2 3 . . . 3 3 28 . 4 5 2 1 . 10 Detach 32 | . 1 3 1 . . 2 3 11 1 2 1 2 . 2 3 Swap 42 | . . 11 3 1 . 2 11 9 . . . 1 1 2 1 Drop 129 | . 6 13 5 2 . 5 14 38 1 . 9 10 2 9 15 Fire 396 | 2 38 80 17 . 8 16 42 94 1 22 6 27 14 9 20 Melee 67 | . . . . . . . 2 60 . 2 . . . . 3 Ram . | . . . . . . . . . . . . . . . . Kick . | . . . . . . . . . . . . . . . . Crush . | . . . . . . . . . . . . . . . . Escape Stasis . | . . . . . . . . . . . . . . . . Rewire . | . . . . . . . . . . . . . . . . Trap . | . . . . . . . . . . . . . . . . Miscellaneous 7 | . . . . . . . . . . . . . . 7 . Route ------- -11/Scrapyard -10/Materials -9/Materials (discovered 2 exits: *Min x2) -9/Mines (discovered 3 exits: [*Mat x2] / *Exi) -9/Exiles -8/Mines -8/Materials -8/Storage -7/Factory (discovered 5 exits: *Fac x4 / [*Low]) -6/Factory -6/Waste -6/Factory (discovered 2 exits: *Fac / *Ext) -5/Factory (discovered 2 exits: *Fac / *Upp) -5/Upper Caves -5/Upper Caves (discovered 2 exits: *Fac / *War) -5/Warlord History --------- Turn | Location | Event 6 | -11/Scrapyard | Discovered new exit (range 15) 91 | -11/Scrapyard | Entered Materials 311 | -10/Materials | Build established: Mutant 564 | -10/Materials | Discovered new exit (range 16) 633 | -10/Materials | Entered another Materials area 633 | -9/Materials | Evolved 2 slots: Propulsion x1, Weapon x1 1058 | -9/Materials | Build established: Tank 1374 | -9/Materials | Discovered new exit (range 16) 1393 | -9/Materials | Identified exit to Mines 1492 | -9/Materials | Entered Mines 1495 | -9/Mines | Received a Mining Laser from a helpful Derelict 1513 | -9/Mines | Build established: Scavenger-Tank 1521 | -9/Mines | Discovered new exit (range 7) 1592 | -9/Mines | Learned Materials stockpile data 1804 | -9/Mines | Met a Derelict who couldn't figure out how to use a Trap Extractor 1949 | -9/Mines | Discovered new exit (range 8) 2093 | -9/Mines | Deemed a non-threat by the Exiles lab entrance 2093 | -9/Mines | Discovered new exit (range 5) 2099 | -9/Mines | Entered Exiles 2138 | -9/Exiles | Met 8R-AWN 2167 | -9/Exiles | Met EX-HEX 2247 | -9/Exiles | Met EX-DEC 2282 | -9/Exiles | Met EX-BIN 2307 | -9/Exiles | Learned location of Zion (-7) 2389 | -9/Exiles | Discovered new exit (range 10) 2403 | -9/Exiles | Entered Mines 2531 | -8/Mines | Discovered new exit (range 12) 2550 | -8/Mines | Entered Materials 2550 | -8/Materials | Evolved 2 slots: Propulsion x1, Utility x1 2719 | -8/Materials | Discovered new exit (range 16) 2862 | -8/Materials | Entered Storage 3321 | -8/Storage | Repaired Gauss Rifle 3409 | -8/Storage | Assisted by bots powering up and referring to "LRC-V3" 3575 | -8/Storage | Garrison activated, responded to threat 3621 | -8/Storage | Lost 3 allies 3717 | -8/Storage | Discovered new exit (range 16) 3741 | -8/Storage | Entered Factory 3741 | -7/Factory | Accompanied by 5 allies 3741 | -7/Factory | Evolved 2 slots: Utility x1, Weapon x1 4096 | -7/Factory | Lost 4 allies 4138 | -7/Factory | Discovered new exit (range 4) 4146 | -7/Factory | Identified exit to Factory 4480 | -7/Factory | Found Launcher Loader 4793 | -7/Factory | Cargo convoy interrupted 4848 | -7/Factory | Destroyed 16 combat bots 4905 | -7/Factory | Lost 4 parts (2n2w) 4941 | -7/Factory | First assault squad dispatched 4951 | -7/Factory | Found Prototype Hackware 4951 | -7/Factory | Identified Exp. Hacking Suite 4962 | -7/Factory | Found Prototype Processor 5073 | -7/Factory | System corruption reached 10% 5086 | -7/Factory | Core integrity fell below 50% 5140 | -7/Factory | Lost 12 parts (1p5n2u4w) 5341 | -7/Factory | Discovered new exit (range 15) 5441 | -7/Factory | Identified Exp. Targeting Computer 5512 | -7/Factory | Core integrity fell below 20% 5542 | -7/Factory | Lost 5 parts (3n2w) 5997 | -7/Factory | Build established: Gunner 6168 | -7/Factory | Entered another Factory area 6168 | -6/Factory | Evolved 2 slots: Utility x2 6304 | -6/Factory | Sucked down chute 6304 | -6/Factory | Entered Waste 6319 | -6/Waste | EMP discharged 6320 | -6/Waste | System corruption reached 10% 6356 | -6/Waste | Spotted C-40 Crusher 6369 | -6/Waste | Crushed by Compactor (1 part destroyed, 2 dropped) 6372 | -6/Waste | Crushed by Compactor (1 part destroyed, 2 dropped) 6375 | -6/Waste | Crushed by Compactor (1 part destroyed, 1 dropped) 6392 | -6/Waste | Crushed by Compactor (1 part destroyed, 2 dropped) 6395 | -6/Waste | Crushed by Compactor (1 part destroyed, 1 dropped) 6398 | -6/Waste | Crushed by Compactor (1 part destroyed, 2 dropped) 6401 | -6/Waste | Crushed by Compactor (1 part destroyed, 1 dropped) 6407 | -6/Waste | Destroyed C-40 Crusher 6419 | -6/Waste | EMP discharged 6419 | -6/Waste | System corruption reached 30% 6419 | -6/Waste | Spotted C-40 Crusher 6432 | -6/Waste | Lost 7 parts (1n2u4w) 6447 | -6/Waste | Crushed by Compactor (1 part destroyed, 1 dropped) 6461 | -6/Waste | Spotted C-40 Crusher 6467 | -6/Waste | Crushed by Compactor (1 part destroyed) 6468 | -6/Waste | Spotted C-40 Crusher 6469 | -6/Waste | Spotted C-40 Crusher 6474 | -6/Waste | Spotted C-40 Crusher 6508 | -6/Waste | Core integrity fell below 50% 6519 | -6/Waste | EMP discharged 6529 | -6/Waste | Discovered new exit (range 11) 6537 | -6/Waste | Entered Factory 6713 | -6/Factory | Build established: Mutant 6851 | -6/Factory | Discovered new exit (range 9) 6856 | -6/Factory | Identified exit to Extension 7072 | -6/Factory | Discovered new exit (range 17) 7144 | -6/Factory | Identified exit to Factory 7162 | -6/Factory | Entered another Factory area 7162 | -5/Factory | Evolved 2 slots: Utility x2 7488 | -5/Factory | Build established: Scavenger-Gunner 7553 | -5/Factory | Discovered new exit (range 11) 7567 | -5/Factory | Identified exit to Factory 7825 | -5/Factory | Discovered new exit (range 13) 7843 | -5/Factory | Identified exit to Upper Caves 7857 | -5/Factory | Entered Upper Caves 7858 | -5/Upper Caves | Encountered a Warlord checkpoint 7860 | -5/Upper Caves | Learned Factory security intel 8267 | -5/Upper Caves | Discovered new exit (range 13) 8288 | -5/Upper Caves | Identified exit to Upper Caves 8293 | -5/Upper Caves | Entered another Upper Caves area 8293 | -5/Upper Caves | Discovered exit to Factory (range 11) 8458 | -5/Upper Caves | Found Alien Artifact 8458 | -5/Upper Caves | Identified Dimensional Node Initializer 8458 | -5/Upper Caves | Initialized slip node 8563 | -5/Upper Caves | Learned Factory interactive machine intel 8686 | -5/Upper Caves | Build established: Gunner 8729 | -5/Upper Caves | Learned location of 1 exit from Factory 8763 | -5/Upper Caves | Discovered new exit (range 5) 8769 | -5/Upper Caves | Identified exit to Warlord 8771 | -5/Upper Caves | Entered Warlord 9246 | -5/Warlord | Received a Watcher feed algorithm from an ecstatic Tinkerer 9285 | -5/Warlord | Visited the Vortex Lab 9294 | -5/Warlord | Found Prototype Energy Gun 9294 | -5/Warlord | Identified Vortex Shotgun 9295 | -5/Warlord | Warlord's base attacked by MAIN.C 9298 | -5/Warlord | Found Vortex Shotgun 9307 | -5/Warlord | Found Prototype Energy Gun 9307 | -5/Warlord | Identified Vortex Rifle 9311 | -5/Warlord | Found Vortex Rifle 9645 | -5/Warlord | Warlord forces counterattacked 9670 | -5/Warlord | Build established: Scavenger-Bomber 9852 | -5/Warlord | Met Warlord 9943 | -5/Warlord | Lost 4 parts (1n1u2w) 9970 | -5/Warlord | Warlord base infiltrated, sounded retreat 9971 | -5/Warlord | Enhanced Grunt warped into view 9971 | -5/Warlord | Enhanced Grunt warped into view 9971 | -5/Warlord | Enhanced Grunt warped into view 9971 | -5/Warlord | Enhanced Demolisher warped into view 9971 | -5/Warlord | Enhanced Demolisher warped into view 9971 | -5/Warlord | Enhanced Demolisher warped into view 10004 | -5/Warlord | Lost 4 allies 10063 | -5/Warlord | Spotted Striker 10075 | -5/Warlord | Spotted Striker 10094 | -5/Warlord | Spotted Executioner 10100 | -5/Warlord | Spotted Executioner 10106 | -5/Warlord | Found Prototype Device 10106 | -5/Warlord | Identified Exp. Shock Absorption System 10108 | -5/Warlord | Found Prototype Launcher 10108 | -5/Warlord | Identified Chain Missile Launcher 10117 | -5/Warlord | Destroyed Executioner 10126 | -5/Warlord | Spotted Executioner 10141 | -5/Warlord | Spotted Executioner 10142 | -5/Warlord | Lost 9 allies 10143 | -5/Warlord | Destroyed Executioner 10164 | -5/Warlord | Destroyed 13 combat bots 10179 | -5/Warlord | Spotted Striker 10219 | -5/Warlord | Spotted Striker 10222 | -5/Warlord | Spotted Executioner 10224 | -5/Warlord | Core integrity fell below 50% 10228 | -5/Warlord | Core integrity fell below 20% 10229 | -5/Warlord | Destroyed by P-80 Master with Gamma Rifle Last Messages --------------- 10195_ 45 Matter crushed. 10195_ The unstable cave ceiling collapses. 10195_ ANNOUNCEMENT: Detected 1 Mixed squad, 1 Melee squad, 2 Programmer squads, with prototype support. 10196_ Segregator destroyed. 10199_ Adv. Targeting Computer destroyed. 10199_ Acquired Rnf. Fission Core. 10200_ The unstable cave ceiling collapses. 10210_ Warlord: "IMPOSS00101101 01101001 01010111 01001001 01001100 01001100 01110010 01100101 01110100 01110101 01110010 01101110" 10210_ Warlord destroyed. 10213_ Acquired 20 matter. 10214_ Dropped Rnf. Fission Core. 10215_ Acquired Com. Wheel. 10222_ P-70 Sage resets B-74 Champion, system corruption cleaned. 10226_ E-15 Imp destroyed. 10227_ Penetrated by Slug. Map ----- +----------------------------------------------------+ | + #????????????????????????????????????? | | # """"" #????????????????????????????????????? | | #### """"" #????????????????????????????????????? | | ???# """"" ??????????????????????????????????????? | | ???# ???????????????????????????????????????? | | ##########???????????????????????????????????????? | | + #?????????????????????????????????????????? | | # #?????????????????????????????????????????? | | # #?????????????????????????????????????????? | | # """ #?####????????????????????????????????????? | | # """ #?# ?????????????????????????????????????? | | # """ #?# #?????????????????????????????????????? | | # ### ###???????????????????????????????????? | | #####+## #????????????????????????????##?????? | | * #??????????????????????????### ?????? | | % #??????????????????????? ?? ?????? | | ! #???????????????????????? ### ?????? | | ######## #????????????????????????? ?????? | | # ###?## ##?????""??????????????????# #????? | | #??# #????#""#?????????????????# ????? | | ! #??# ##????#""#??????????????????# ##??? | | =! #??# %#???###""#????####???????????# #??? | | !!! #### *=##### #""##### #####????????# ##?? | | |! # [=!%!; % "" [!" % ;;####??????# ### | | ==!* # [%!%%= b ""![!%% % """"#???????# # | | [*%" %=!%[=%pi=""*%!%@% % """""#?####?## | | [%%% !]%*= %d%%p%=%%[=p= %%%% % ### ### | | [%=== %!=! *%! p%E*p*=%]!%% + ## | | =!=!*=d= K==%*%p%%=*=[ % ; #### | | =%*dd =%= %==!%=*%]=% #### ##??# | | ## !!!= ""=!![% % "" """#??## #???# | | # %!%%% ""[!! """""""""""#???# #?### | | # % # "" "############???# #### # | | #### #######""#####??????????????# #?# | | #??# #?????#""#?????????????????? ### | | #??# #?????#""#????????????????? ### | | "" #??# #??????""?????????????????? ##?# | | "" #??# #????????????????????????? ???## | | "" #??# #????????????????????????# ????## | | "" #??# #????????????????????????# #?????# | | ######??# #????????????????????????# ??????## | | ????????# #?????????????????????????? ??????## | | ????????# #######??????????????????????????## | | ????????# # """"" ?????????????????????????# | | ???###### # """"" #????????????????????????# | | ???# # """"" #????????????????????????# | | ???# + #????????????????????????# | | ???# # #????????????????????????## | | ???# ### #### #????????????????????????? | | ???# #?###??# #????????????????????????? # | +----------------------------------------------------+ Best States ------------- Heat Dissipation 64 Coolant Potential 130 Energy Generation 21 Energy Capacity 900 Matter Stores 300 Matter Capacity 300 Sight Range 16 Terrain Scan Range 20 Terrain Scan Density 110 Armor Coverage 675 Resistance: EX 75 Evasion (%) 63 Targeting Accuracy 16 Melee Accuracy 8 Core Analysis 6 Recoil Reduction 4 Offensive Hacking 16 Item Schematics ----------------- None Robot Schematics ------------------ None Fabricated ------------ Nothing Alien Tech Used ----------------- Dimensional Node Initializer Achievements -------------- None Challenges ------------ None Game ------ Seed IntegrityReflectiveBattery Manual? 0 Play Time 01:33:39 Cumulative 133.2 hours Start 2024.04.28 @ 14:20:35 End 2024.04.28 @ 16:11:26 Sessions 1 Manual Loads 0 Difficulty Rogue Special Mode None Game No. 138 Rogue 133 Adventurer 5 Explorer 0 Win Type - Total 3 Types 2/0/0/1/0/0/0/0/0 Lore% 52 Gallery% 68 Achievement% 50 Wizard Run 0 Options --------- Layout 1 ASCII 0 Keyboard 0 Movement Mouse Keybinds 0 Fullscreen 1 Font 24/Terminus Map View 50x35 Zoom Use 0% Tactical HUD 1 Map Filters NONE Filters NONE Steam 1 RUN: 94f51014-f55c-4a11-ae1e-401fcd04da9b